[Event "4. Memorial Svat.Hastika OPEN"]
[Site "Jesenik, Czech Republic"]
[Date "2022.09.03"]
[Round "4.9"]
[White "Ondrackova, Veronika"]
[Black "Haidenko, Mykola"]
[Result "0-1"]
[TimeControl "720+3"]
[WhiteFideId "23739983"]
[BlackFideId "23731958"]
[WhiteElo "1213"]
[BlackElo "1429"]

1. e4 {[%clk 00:12:04]} {[%emt 00:00:02]} e5 {[%clk 00:12:02]} {[%emt
00:00:05]} 2. Nf3 {[%clk 00:12:05]} {[%emt 00:00:02]} Nc6 {[%clk 00:12:04]} 3.
d4 {[%clk 00:12:07]} {[%emt 00:00:01]} exd4 {[%clk 00:12:06]} {[%emt 00:00:02]}
4. Nxd4 {[%clk 00:12:09]} Nf6 {[%clk 00:12:08]} {[%emt 00:00:01]} 5. Nc3 {[%clk
00:12:10]} {[%emt 00:00:02]} Bb4 {[%clk 00:12:08]} {[%emt 00:00:02]} 6. Nxc6
{[%clk 00:12:07]} {[%emt 00:00:06]} bxc6 {[%clk 00:12:11]} 7. Bd3 {[%clk
00:12:06]} {[%emt 00:00:03]} d5 {[%clk 00:12:11]} {[%emt 00:00:03]} 8. exd5
{[%clk 00:12:06]} {[%emt 00:00:04]} cxd5 {[%clk 00:12:13]} 9. O-O {[%clk
00:11:55]} {[%emt 00:00:14]} O-O {[%clk 00:12:15]} {[%emt 00:00:01]} 10. Bd2
{[%clk 00:11:55]} {[%emt 00:00:03]} c6 {[%clk 00:12:12]} {[%emt 00:00:06]} 11.
a3 {[%clk 00:11:50]} {[%emt 00:00:08]} Bd6 {[%clk 00:12:14]} 12. h3 {[%clk
00:11:38]} {[%emt 00:00:14]} Qc7 {[%clk 00:12:15]} {[%emt 00:00:02]} 13. Qf3
{[%clk 00:11:15]} {[%emt 00:00:26]} Be6 {[%clk 00:11:48]} {[%emt 00:00:31]} 14.
Bg5 {[%clk 00:10:51]} {[%emt 00:00:26]} Nd7 {[%clk 00:11:41]} {[%emt 00:00:11]}
15. Ne2 {[%clk 00:09:51]} {[%emt 00:01:03]} Ne5 {[%clk 00:11:34]} {[%emt
00:00:11]} 16. Qe3 {[%clk 00:09:27]} {[%emt 00:00:26]} Nxd3 {[%clk 00:11:32]}
{[%emt 00:00:05]} 17. Qxd3 {[%clk 00:09:17]} {[%emt 00:00:13]} Rfe8 {[%clk
00:11:30]} {[%emt 00:00:06]} 18. Nd4 {[%clk 00:08:55]} {[%emt 00:00:24]} Be5
{[%clk 00:10:19]} {[%emt 00:01:14]} 19. c3 {[%clk 00:07:20]} {[%emt 00:01:38]}
Rab8 {[%clk 00:09:41]} {[%emt 00:00:41]} 20. Rab1 {[%clk 00:06:10]} {[%emt
00:01:13]} Qd7 {[%clk 00:08:10]} {[%emt 00:01:33]} 21. Rfe1 {[%clk 00:04:58]}
{[%emt 00:01:15]} Bxd4 {[%clk 00:07:49]} {[%emt 00:00:25]} 22. Qxd4 {[%emt
00:00:18]} Bf5 {[%clk 00:07:47]} {[%emt 00:00:02]} 23. Rbc1 {[%clk 00:02:01]}
{[%emt 00:02:48]} Rxe1+ {[%clk 00:06:57]} {[%emt 00:00:53]} 24. Rxe1 {[%clk
00:02:02]} {[%emt 00:00:01]} f6 {[%clk 00:07:00]} 25. Bc1 {[%clk 00:01:54]}
{[%emt 00:00:12]} Rb6 {[%clk 00:04:45]} {[%emt 00:02:19]} 26. Qc5 {[%clk
00:01:02]} {[%emt 00:00:54]} Kf7 {[%clk 00:04:20]} {[%emt 00:00:28]} 27. Qe3
{[%clk 00:00:34]} {[%emt 00:00:31]} Rb8 {[%clk 00:04:00]} {[%emt 00:00:23]} 28.
Qf4 {[%clk 00:00:33]} {[%emt 00:00:04]} Rd8 {[%clk 00:03:32]} {[%emt 00:00:31]}
29. Be3 {[%clk 00:00:22]} {[%emt 00:00:14]} a6 {[%clk 00:03:20]} {[%emt
00:00:15]} 30. Bc5 {[%clk 00:00:21]} {[%emt 00:00:04]} Be6 {[%clk 00:02:50]}
{[%emt 00:00:33]} 31. Qe3 {[%clk 00:00:15]} {[%emt 00:00:08]} Rb8 {[%clk
00:02:50]} {[%emt 00:00:03]} 32. b4 {[%clk 00:00:11]} {[%emt 00:00:08]} Re8
{[%clk 00:02:05]} {[%emt 00:00:48]} 33. Qf4 {[%clk 00:00:10]} {[%emt 00:00:03]}
Rd8 {[%clk 00:01:57]} {[%emt 00:00:12]} 34. Qf3 {[%clk 00:00:06]} {[%emt
00:00:07]} Re8 {[%clk 00:01:44]} {[%emt 00:00:16]} 35. Qh5+ {[%clk 00:00:08]}
{[%emt 00:00:01]} Kg8 {[%clk 00:01:43]} {[%emt 00:00:04]} 36. Qf3 {[%clk
00:00:09]} {[%emt 00:00:02]} Kf7 {[%clk 00:01:44]} {[%emt 00:00:02]} 37. Qh5+
{[%clk 00:00:11]} Kg8 {[%clk 00:01:46]} 38. Qd1 {[%clk 00:00:12]} {[%emt
00:00:02]} Bf5 {[%emt 00:00:18]} 39. Qd2 {[%clk 00:00:09]} {[%emt 00:00:05]}
Rxe1+ {[%clk 00:01:20]} {[%emt 00:00:16]} 40. Qxe1 {[%clk 00:00:11]} Kf7 {[%clk
00:01:22]} 41. Qe3 {[%clk 00:00:09]} {[%emt 00:00:05]} Be4 {[%clk 00:01:19]}
{[%emt 00:00:07]} 42. f3 {[%clk 00:00:10]} {[%emt 00:00:02]} Bc2 {[%clk
00:01:21]} 43. Kf2 {[%clk 00:00:09]} {[%emt 00:00:04]} g6 {[%clk 00:01:17]}
{[%emt 00:00:07]} 44. Qd4 {[%clk 00:00:09]} {[%emt 00:00:03]} Bb3 {[%clk
00:01:08]} {[%emt 00:00:12]} 45. Qh4 {[%clk 00:00:10]} {[%emt 00:00:01]} Kg7
{[%clk 00:01:06]} {[%emt 00:00:06]} 46. Bd4 {[%clk 00:00:12]} Qe6 {[%clk
00:01:07]} {[%emt 00:00:02]} 47. Qf4 {[%clk 00:00:10]} {[%emt 00:00:04]} g5
{[%clk 00:00:56]} {[%emt 00:00:15]} 48. Qc7+ {[%clk 00:00:12]} Kg6 {[%clk
00:00:56]} {[%emt 00:00:03]} 49. Qa7 {[%clk 00:00:11]} {[%emt 00:00:04]} Bc4
{[%emt 00:00:02]} 50. Qa8 {[%clk 00:00:08]} {[%emt 00:00:05]} Qe2+ {[%clk
00:01:00]} 51. Kg3 {[%clk 00:00:10]} Qe1+ {[%clk 00:00:59]} {[%emt 00:00:03]}
52. Kg4 {[%clk 00:00:10]} {[%emt 00:00:03]} f5# {[%clk 00:00:56]} {[%emt
00:00:06]} 0-1

[Event "4. Memorial Svat.Hastika OPEN"]
[Site "Jesenik, Czech Republic"]
[Date "2022.09.03"]
[Round "5.1"]
[White "Gnida, Patrik"]
[Black "Banasik, Krzysztof"]
[Result "1/2-1/2"]
[TimeControl "720+3"]
[WhiteFideId "351660"]
[BlackFideId "1125222"]
[WhiteElo "2092"]
[BlackElo "2166"]

1. d4 {[%clk 00:12:04]} {[%emt 00:00:02]} Nf6 {[%clk 00:12:05]} {[%emt
00:00:02]} 2. Nf3 {[%clk 00:12:05]} {[%emt 00:00:03]} g6 {[%clk 00:12:06]}
{[%emt 00:00:01]} 3. g3 {[%clk 00:12:06]} {[%emt 00:00:02]} Bg7 {[%clk
00:12:08]} {[%emt 00:00:01]} 4. Bg2 {[%clk 00:12:08]} d5 {[%clk 00:12:10]}
{[%emt 00:00:02]} 5. c4 {[%clk 00:12:09]} {[%emt 00:00:02]} c6 {[%clk
00:12:11]} 6. O-O {[%clk 00:12:11]} {[%emt 00:00:01]} O-O {[%clk 00:12:13]}
{[%emt 00:00:02]} 7. b3 {[%clk 00:12:10]} {[%emt 00:00:04]} a5 {[%clk
00:12:10]} {[%emt 00:00:06]} 8. Nc3 {[%clk 00:11:35]} {[%emt 00:00:38]} Be6
{[%clk 00:12:00]} {[%emt 00:00:13]} 9. c5 {[%clk 00:11:26]} {[%emt 00:00:12]}
h6 {[%clk 00:11:47]} {[%emt 00:00:16]} 10. Bd2 {[%clk 00:11:12]} {[%emt
00:00:17]} Nbd7 {[%clk 00:11:40]} {[%emt 00:00:09]} 11. Na4 {[%clk 00:11:14]}
{[%emt 00:00:02]} 1/2-1/2

[Event "4. Memorial Svat.Hastika OPEN"]
[Site "Jesenik, Czech Republic"]
[Date "2022.09.03"]
[Round "5.2"]
[White "Gawlas, Roman"]
[Black "Zrubek, Adam"]
[Result "1-0"]
[TimeControl "720+3"]
[WhiteFideId "351652"]
[BlackFideId "23718706"]
[WhiteElo "1906"]
[BlackElo "1583"]

1. d4 {[%clk 00:12:04]} {[%emt 00:00:02]} d5 {[%clk 00:12:05]} 2. c4 {[%clk
00:12:06]} Nc6 {[%clk 00:12:07]} 3. Nf3 {[%clk 00:11:51]} {[%emt 00:00:18]} Bg4
{[%clk 00:12:08]} {[%emt 00:00:02]} 4. cxd5 {[%clk 00:11:51]} {[%emt 00:00:04]}
Bxf3 {[%clk 00:12:10]} {[%emt 00:00:02]} 5. gxf3 {[%clk 00:11:45]} {[%emt
00:00:09]} Qxd5 {[%clk 00:12:09]} {[%emt 00:00:03]} 6. e3 {[%clk 00:11:28]}
{[%emt 00:00:21]} e5 {[%clk 00:12:04]} {[%emt 00:00:08]} 7. Nc3 {[%clk
00:11:13]} {[%emt 00:00:17]} Bb4 {[%clk 00:11:55]} {[%emt 00:00:11]} 8. a3
{[%clk 00:09:33]} {[%emt 00:01:45]} Bxc3+ {[%clk 00:11:48]} {[%emt 00:00:09]} 9.
bxc3 {[%clk 00:09:34]} {[%emt 00:00:02]} Nf6 {[%clk 00:10:54]} {[%emt
00:00:57]} 10. c4 {[%clk 00:07:06]} {[%emt 00:02:31]} Qd6 {[%clk 00:09:49]}
{[%emt 00:01:08]} 11. d5 {[%clk 00:06:42]} {[%emt 00:00:28]} Ne7 {[%clk
00:09:28]} {[%emt 00:00:23]} 12. Bd3 {[%clk 00:05:44]} {[%emt 00:01:00]} O-O
{[%clk 00:08:45]} {[%emt 00:00:46]} 13. O-O {[%clk 00:05:44]} {[%emt 00:00:04]}
c6 {[%clk 00:08:24]} {[%emt 00:00:25]} 14. e4 {[%clk 00:05:44]} {[%emt
00:00:03]} Ng6 {[%clk 00:08:06]} {[%emt 00:00:21]} 15. Kh1 {[%clk 00:04:22]}
{[%emt 00:01:25]} Nh5 {[%clk 00:07:38]} {[%emt 00:00:30]} 16. Rb1 {[%clk
00:03:50]} {[%emt 00:00:35]} b6 {[%clk 00:06:59]} {[%emt 00:00:43]} 17. Rg1
{[%clk 00:03:38]} {[%emt 00:00:15]} Nhf4 {[%clk 00:06:39]} {[%emt 00:00:23]} 18.
Bf1 {[%clk 00:03:30]} {[%emt 00:00:10]} c5 {[%clk 00:05:49]} {[%emt 00:00:54]}
19. a4 {[%clk 00:03:01]} {[%emt 00:00:32]} f5 {[%clk 00:04:44]} {[%emt
00:01:08]} 20. Rg3 {[%clk 00:02:31]} {[%emt 00:00:33]} Nh5 {[%clk 00:02:46]}
{[%emt 00:02:01]} 21. Rg5 {[%clk 00:02:17]} {[%emt 00:00:16]} Nhf4 {[%clk
00:01:48]} {[%emt 00:01:02]} 22. exf5 {[%clk 00:01:57]} {[%emt 00:00:23]} h6
{[%clk 00:01:09]} {[%emt 00:00:42]} 23. Rxg6 {[%clk 00:01:34]} {[%emt
00:00:26]} Nxg6 {[%clk 00:01:11]} {[%emt 00:00:01]} 24. fxg6 {[%clk 00:01:35]}
{[%emt 00:00:02]} Qxg6 {[%clk 00:01:00]} {[%emt 00:00:14]} 25. Bd3 {[%clk
00:01:37]} {[%emt 00:00:01]} Qh5 {[%clk 00:00:27]} {[%emt 00:00:36]} 26. Be4
{[%clk 00:01:38]} {[%emt 00:00:03]} Rad8 {[%clk 00:00:13]} {[%emt 00:00:16]} 27.
Be3 {[%clk 00:01:24]} {[%emt 00:00:17]} Rd6 {[%clk 00:00:06]} {[%emt 00:00:10]}
28. Qg1 {[%clk 00:01:22]} {[%emt 00:00:05]} Rdf6 {[%clk 00:00:04]} {[%emt
00:00:05]} 29. Qg2 {[%clk 00:01:07]} {[%emt 00:00:18]} Kh8 {[%clk 00:00:04]}
{[%emt 00:00:03]} 30. Rg1 {[%clk 00:01:04]} {[%emt 00:00:06]} Qf7 {[%clk
00:00:05]} {[%emt 00:00:03]} 31. Qg4 {[%clk 00:00:43]} {[%emt 00:00:24]} Qe7
{[%clk 00:00:05]} {[%emt 00:00:03]} 32. Rg3 {[%clk 00:00:33]} {[%emt 00:00:12]}
Qf7 {[%clk 00:00:06]} {[%emt 00:00:03]} 33. Qh4 {[%clk 00:00:26]} {[%emt
00:00:08]} Qe7 {[%clk 00:00:05]} {[%emt 00:00:06]} 34. Qh3 {[%clk 00:00:23]}
{[%emt 00:00:05]} Qf7 {[%clk 00:00:07]} {[%emt 00:00:03]} 35. Qg2 {[%clk
00:00:23]} {[%emt 00:00:02]} Qe7 {[%clk 00:00:07]} {[%emt 00:00:04]} 36. Rg6
{[%clk 00:00:19]} {[%emt 00:00:07]} Qf7 {[%clk 00:00:04]} {[%emt 00:00:07]} 37.
Rg3 {[%clk 00:00:08]} {[%emt 00:00:13]} Qe7 {[%clk 00:00:06]} {[%emt 00:00:01]}
38. Rg4 {[%clk 00:00:09]} Qf7 {[%clk 00:00:05]} {[%emt 00:00:05]} 39. Qg3
{[%clk 00:00:11]} Qe7 {[%clk 00:00:06]} {[%emt 00:00:03]} 40. Rg6 {[%clk
00:00:13]} Qf7 {[%clk 00:00:05]} {[%emt 00:00:04]} 41. Rxf6 {[%clk 00:00:14]}
{[%emt 00:00:01]} Qxf6 {[%clk 00:00:05]} {[%emt 00:00:03]} 42. Qg4 {[%clk
00:00:14]} {[%emt 00:00:03]} Rf7 {[%clk 00:00:04]} {[%emt 00:00:04]} 43. Qc8+
{[%clk 00:00:13]} {[%emt 00:00:04]} Rf8 {[%clk 00:00:07]} 44. Qe6 {[%clk
00:00:11]} {[%emt 00:00:05]} Qh4 {[%clk 00:00:05]} {[%emt 00:00:05]} 45. d6
{[%clk 00:00:08]} {[%emt 00:00:06]} Qd8 {[%clk 00:00:04]} {[%emt 00:00:04]} 46.
d7 {[%clk 00:00:07]} {[%emt 00:00:04]} Rf6 {[%clk 00:00:00]} {[%emt 00:00:03]}
47. Qd5 {[%clk 00:00:07]} {[%emt 00:00:02]} 1-0

[Event "4. Memorial Svat.Hastika OPEN"]
[Site "Jesenik, Czech Republic"]
[Date "2022.09.03"]
[Round "5.3"]
[White "Cechacek, Miroslav"]
[Black "Zrubek, Dan"]
[Result "1/2-1/2"]
[TimeControl "720+3"]
[WhiteFideId "377090"]
[BlackFideId "23718714"]
[WhiteElo "1541"]
[BlackElo "1504"]

1. e4 {[%clk 00:12:04]} {[%emt 00:00:01]} c6 {[%clk 00:12:05]} {[%emt
00:00:02]} 2. f4 {[%clk 00:12:02]} {[%emt 00:00:04]} d5 {[%clk 00:11:33]}
{[%emt 00:00:36]} 3. e5 {[%clk 00:11:58]} {[%emt 00:00:07]} Bf5 {[%clk
00:11:26]} {[%emt 00:00:10]} 4. Nf3 {[%clk 00:11:50]} {[%emt 00:00:10]} e6
{[%clk 00:11:17]} {[%emt 00:00:12]} 5. d3 {[%clk 00:11:50]} {[%emt 00:00:03]}
Nd7 {[%clk 00:11:05]} {[%emt 00:00:16]} 6. Be3 {[%clk 00:10:48]} {[%emt
00:01:06]} c5 {[%clk 00:10:12]} {[%emt 00:00:55]} 7. d4 {[%clk 00:10:41]}
{[%emt 00:00:10]} Qb6 {[%clk 00:09:10]} {[%emt 00:01:06]} 8. dxc5 {[%clk
00:09:13]} {[%emt 00:01:31]} Qxb2 {[%clk 00:07:09]} {[%emt 00:02:04]} 9. Bd4
{[%clk 00:08:47]} {[%emt 00:00:28]} Qxc2 {[%clk 00:06:38]} {[%emt 00:00:34]} 10.
Qxc2 {[%clk 00:08:41]} {[%emt 00:00:09]} Bxc2 {[%clk 00:06:39]} {[%emt
00:00:02]} 11. Na3 {[%clk 00:08:43]} {[%emt 00:00:01]} Ba4 {[%clk 00:04:44]}
{[%emt 00:01:57]} 12. Bb5 {[%clk 00:07:56]} {[%emt 00:00:51]} Bxb5 {[%clk
00:04:31]} {[%emt 00:00:17]} 13. Nxb5 {[%clk 00:07:57]} {[%emt 00:00:01]} Rc8
{[%emt 00:01:42]} 14. Nxa7 {[%emt 00:00:12]} 1/2-1/2

[Event "4. Memorial Svat.Hastika OPEN"]
[Site "Jesenik, Czech Republic"]
[Date "2022.09.03"]
[Round "5.4"]
[White "Zamarsky, Patrik"]
[Black "Bares, Jachym"]
[Result "0-1"]
[TimeControl "720+3"]
[WhiteFideId "23714280"]
[BlackFideId "345075"]
[WhiteElo "1216"]
[BlackElo "1978"]

1. e4 {[%clk 00:12:02]} {[%emt 00:00:04]} e5 {[%clk 00:12:06]} 2. Nf3 {[%clk
00:12:03]} {[%emt 00:00:02]} Nc6 {[%clk 00:12:07]} {[%emt 00:00:01]} 3. d4
{[%clk 00:12:04]} {[%emt 00:00:03]} exd4 {[%clk 00:12:09]} {[%emt 00:00:01]} 4.
Nxd4 {[%clk 00:12:06]} Nf6 {[%clk 00:12:10]} {[%emt 00:00:01]} 5. Nxc6 {[%clk
00:11:56]} {[%emt 00:00:14]} bxc6 {[%clk 00:12:11]} {[%emt 00:00:02]} 6. Bd3
{[%clk 00:11:58]} Bb4+ {[%clk 00:11:32]} {[%emt 00:00:42]} 7. c3 {[%clk
00:11:55]} {[%emt 00:00:06]} Bc5 {[%clk 00:11:31]} {[%emt 00:00:02]} 8. Bg5
{[%clk 00:11:56]} {[%emt 00:00:03]} Be7 {[%clk 00:11:21]} {[%emt 00:00:14]} 9.
Be3 {[%clk 00:11:30]} {[%emt 00:00:29]} O-O {[%clk 00:11:16]} {[%emt 00:00:08]}
10. O-O {[%clk 00:11:32]} {[%emt 00:00:02]} d5 {[%clk 00:11:16]} {[%emt
00:00:03]} 11. Nd2 {[%clk 00:11:11]} {[%emt 00:00:24]} Ng4 {[%clk 00:11:05]}
{[%emt 00:00:14]} 12. Bf4 {[%clk 00:10:25]} {[%emt 00:00:49]} Bd6 {[%clk
00:10:44]} {[%emt 00:00:24]} 13. Bxd6 {[%clk 00:10:05]} {[%emt 00:00:24]} Qxd6
{[%clk 00:10:45]} 14. Nf3 {[%clk 00:09:54]} {[%emt 00:00:13]} Re8 {[%clk
00:10:16]} {[%emt 00:00:32]} 15. Re1 {[%clk 00:08:54]} {[%emt 00:01:04]} Bb7
{[%clk 00:09:40]} {[%emt 00:00:39]} 16. h3 {[%clk 00:08:52]} {[%emt 00:00:06]}
Ne5 {[%clk 00:09:29]} {[%emt 00:00:14]} 17. Nxe5 {[%clk 00:08:43]} {[%emt
00:00:11]} Rxe5 {[%clk 00:09:30]} {[%emt 00:00:02]} 18. exd5 {[%clk 00:08:19]}
{[%emt 00:00:27]} Rxd5 {[%clk 00:09:23]} {[%emt 00:00:09]} 19. Re3 {[%clk
00:08:09]} {[%emt 00:00:13]} Rd8 {[%clk 00:09:21]} {[%emt 00:00:05]} 20. Bxh7+
{[%clk 00:06:54]} {[%emt 00:01:19]} Kxh7 {[%clk 00:09:18]} {[%emt 00:00:05]} 21.
Qc2+ {[%clk 00:06:56]} Kg8 {[%clk 00:09:09]} {[%emt 00:00:13]} 22. Rae1 {[%clk
00:06:58]} Rd1 {[%clk 00:08:13]} {[%emt 00:00:59]} 23. Qb3 {[%clk 00:05:59]}
{[%emt 00:01:02]} Rxe1+ {[%clk 00:07:46]} {[%emt 00:00:30]} 24. Rxe1 {[%clk
00:06:00]} {[%emt 00:00:02]} Bc8 {[%clk 00:07:34]} {[%emt 00:00:14]} 25. Qc2
{[%clk 00:05:15]} {[%emt 00:00:49]} Be6 {[%clk 00:06:56]} {[%emt 00:00:40]} 26.
a3 {[%clk 00:05:07]} {[%emt 00:00:12]} Qd2 {[%clk 00:06:50]} {[%emt 00:00:08]}
27. Re2 {[%clk 00:04:16]} {[%emt 00:00:55]} Qxc2 {[%clk 00:06:42]} {[%emt
00:00:11]} 28. Rxc2 {[%clk 00:04:18]} f6 {[%clk 00:06:29]} {[%emt 00:00:16]} 29.
h4 {[%clk 00:03:27]} {[%emt 00:00:54]} Kf7 {[%clk 00:06:26]} {[%emt 00:00:06]}
30. g3 {[%clk 00:03:29]} c5 {[%clk 00:06:28]} {[%emt 00:00:01]} 31. b4 {[%clk
00:03:22]} {[%emt 00:00:10]} cxb4 {[%clk 00:06:30]} 32. cxb4 {[%clk 00:03:14]}
{[%emt 00:00:10]} Rc8 {[%clk 00:06:16]} {[%emt 00:00:17]} 33. f4 {[%clk
00:03:04]} {[%emt 00:00:13]} Ke7 {[%clk 00:06:18]} {[%emt 00:00:02]} 34. Kf2
{[%clk 00:03:06]} {[%emt 00:00:01]} Kd6 {[%clk 00:06:19]} {[%emt 00:00:02]} 35.
Ke3 {[%clk 00:03:08]} Bd5 {[%clk 00:05:58]} {[%emt 00:00:23]} 36. Rc5 {[%clk
00:02:58]} {[%emt 00:00:14]} Re8+ {[%clk 00:05:58]} {[%emt 00:00:03]} 37. Kf2
{[%clk 00:02:54]} {[%emt 00:00:06]} c6 {[%clk 00:05:51]} {[%emt 00:00:11]} 38.
Rc3 {[%clk 00:02:41]} {[%emt 00:00:16]} a5 {[%clk 00:05:40]} {[%emt 00:00:15]}
39. Rc2 {[%clk 00:02:10]} {[%emt 00:00:33]} Ra8 {[%clk 00:05:31]} {[%emt
00:00:12]} 40. Kg1 {[%clk 00:01:28]} {[%emt 00:00:45]} axb4 {[%clk 00:05:31]}
{[%emt 00:00:03]} 41. axb4 {[%clk 00:01:31]} Ra3 {[%clk 00:05:29]} {[%emt
00:00:04]} 42. Kh2 {[%clk 00:01:33]} {[%emt 00:00:01]} Ra1 {[%clk 00:05:28]}
{[%emt 00:00:04]} 43. g4 {[%clk 00:01:05]} {[%emt 00:00:31]} Rb1 {[%clk
00:05:22]} {[%emt 00:00:08]} 44. g5 {[%clk 00:00:55]} {[%emt 00:00:13]} Rxb4
{[%clk 00:05:01]} {[%emt 00:00:25]} 45. Rf2 {[%clk 00:00:45]} {[%emt 00:00:12]}
Ra4 {[%clk 00:04:15]} {[%emt 00:00:50]} 46. Kg3 {[%clk 00:00:40]} {[%emt
00:00:07]} f5 {[%clk 00:04:09]} {[%emt 00:00:09]} 47. h5 {[%clk 00:00:41]}
{[%emt 00:00:03]} c5 {[%clk 00:03:22]} {[%emt 00:00:49]} 48. h6 {[%clk
00:00:43]} {[%emt 00:00:01]} gxh6 {[%clk 00:03:24]} {[%emt 00:00:01]} 49. gxh6
{[%clk 00:00:45]} Ra7 {[%clk 00:03:22]} {[%emt 00:00:05]} 50. Rh2 {[%clk
00:00:45]} {[%emt 00:00:03]} Rh7 {[%clk 00:03:16]} {[%emt 00:00:09]} 51. Kh4
{[%clk 00:00:47]} {[%emt 00:00:02]} Rxh6+ {[%clk 00:03:17]} {[%emt 00:00:02]}
52. Kg3 {[%clk 00:00:44]} {[%emt 00:00:06]} Rxh2 {[%clk 00:03:15]} {[%emt
00:00:05]} 53. Kxh2 {[%clk 00:00:46]} c4 {[%clk 00:03:16]} {[%emt 00:00:01]}
0-1

[Event "4. Memorial Svat.Hastika OPEN"]
[Site "Jesenik, Czech Republic"]
[Date "2022.09.03"]
[Round "5.5"]
[White "Wrobel, Maciej"]
[Black "Cimburek, Jan"]
[Result "1-0"]
[TimeControl "720+3"]
[WhiteFideId "1181351"]
[BlackFideId "390283"]
[WhiteElo "1873"]
[BlackElo "1591"]

1. e4 {[%clk 00:12:04]} {[%emt 00:00:01]} c5 {[%clk 00:12:04]} {[%emt
00:00:02]} 2. Nf3 {[%clk 00:12:05]} {[%emt 00:00:02]} g6 {[%clk 00:12:06]} 3.
d4 {[%clk 00:12:06]} {[%emt 00:00:03]} cxd4 {[%clk 00:12:08]} 4. Nxd4 {[%clk
00:12:07]} {[%emt 00:00:02]} Bg7 {[%clk 00:12:10]} {[%emt 00:00:01]} 5. Nc3
{[%clk 00:11:54]} {[%emt 00:00:16]} Nc6 {[%clk 00:12:10]} {[%emt 00:00:03]} 6.
Be3 {[%clk 00:11:56]} {[%emt 00:00:02]} Nf6 {[%clk 00:12:11]} 7. Nxc6 {[%clk
00:11:19]} {[%emt 00:00:40]} bxc6 {[%clk 00:10:52]} {[%emt 00:01:22]} 8. Qd2
{[%clk 00:10:10]} {[%emt 00:01:12]} O-O {[%clk 00:09:42]} {[%emt 00:01:14]} 9.
f3 {[%clk 00:09:41]} {[%emt 00:00:31]} Qa5 {[%clk 00:08:19]} {[%emt 00:01:26]}
10. Bc4 {[%clk 00:08:42]} {[%emt 00:01:02]} e6 {[%clk 00:06:54]} {[%emt
00:01:28]} 11. O-O {[%clk 00:07:52]} {[%emt 00:00:53]} d5 {[%clk 00:06:39]}
{[%emt 00:00:18]} 12. Nxd5 {[%clk 00:05:55]} {[%emt 00:02:00]} Qxd2 {[%clk
00:06:29]} {[%emt 00:00:13]} 13. Nxf6+ {[%clk 00:05:00]} {[%emt 00:00:59]} Bxf6
{[%clk 00:06:27]} {[%emt 00:00:04]} 14. Bxd2 {[%clk 00:05:01]} {[%emt
00:00:02]} Bxb2 {[%clk 00:06:25]} {[%emt 00:00:05]} 15. Rab1 {[%clk 00:04:57]}
{[%emt 00:00:07]} Bd4+ {[%clk 00:06:25]} {[%emt 00:00:03]} 16. Kh1 {[%clk
00:04:59]} a5 {[%clk 00:05:57]} {[%emt 00:00:32]} 17. Bh6 {[%clk 00:04:35]}
{[%emt 00:00:27]} Rd8 {[%clk 00:05:30]} {[%emt 00:00:30]} 18. Rfd1 {[%clk
00:04:24]} {[%emt 00:00:13]} Ba6 {[%clk 00:05:15]} {[%emt 00:00:18]} 19. Bxa6
{[%clk 00:04:15]} {[%emt 00:00:12]} Rxa6 {[%clk 00:05:15]} {[%emt 00:00:03]} 20.
Rxd4 {[%clk 00:04:14]} {[%emt 00:00:04]} Raa8 {[%clk 00:04:53]} {[%emt
00:00:25]} 21. Rbd1 {[%clk 00:04:03]} {[%emt 00:00:14]} Rxd4 {[%clk 00:04:52]}
{[%emt 00:00:03]} 22. Rxd4 {[%clk 00:04:05]} Rb8 {[%clk 00:04:39]} {[%emt
00:00:16]} 23. h4 {[%clk 00:04:00]} {[%emt 00:00:09]} f5 {[%clk 00:04:35]}
{[%emt 00:00:07]} 24. exf5 {[%clk 00:03:50]} {[%emt 00:00:12]} exf5 {[%clk
00:04:36]} {[%emt 00:00:02]} 25. Rd7 {[%clk 00:03:33]} {[%emt 00:00:20]} a4
{[%clk 00:04:15]} {[%emt 00:00:24]} 26. Rg7+ {[%clk 00:03:34]} {[%emt
00:00:02]} Kh8 {[%clk 00:04:15]} {[%emt 00:00:03]} 27. Ra7 {[%clk 00:03:28]}
{[%emt 00:00:09]} Kg8 {[%clk 00:04:14]} {[%emt 00:00:04]} 28. Rxa4 {[%clk
00:03:25]} {[%emt 00:00:06]} Rb2 {[%clk 00:04:14]} {[%emt 00:00:03]} 29. Rc4
{[%clk 00:03:17]} {[%emt 00:00:12]} 1-0